bitfinex/quotes_ETHUSD_20250415
["timestamp","ask_amount","ask_price","bid_price","bid_amount"]
[1744691674191,0.7551,1634.8,1634.5,12.23583]
[1744691674495,0.7551,1634.8,1634.5,6.1179]
[1744691675562,0.7551,1634.8,1634.5,12.23574]
[1744691675789,0.7551,1634.8,1634.6,6.11756]
[1744691676357,0.7551,1634.8,1634.5,12.23568]
[1744691676562,0.7551,1634.8,1634.5,6.11784]
[1744691676992,0.7551,1634.8,1634.4,6.11843]
[1744691677259,0.7551,1634.8,1634.4,6.11826]
[1744691677465,6.87209,1634.8,1634.4,6.11826]
[1744691678066,0.7551,1634.8,1634.5,6.11807]
[1744691678288,0.7551,1634.8,1634.7,6.11733]
[1744691678485,0.7551,1634.8,1634.5,6.11807]
[1744691679277,6.8721,1634.8,1634.5,6.11807]
[1744691679491,0.7551,1634.8,1634.5,6.11807]
[1744691679690,0.777,1635.1,1634.8,6.11691]
[1744691680875,0.777,1635.1,1634.9,6.11653]
[1744691681064,0.777,1635.1,1635.0,6.1162]
[1744691681475,5.286,1635.3,1635.2,6.11539]
[1744691683208,6.089,1635.6,1635.5,6.11433]
[1744691683778,5.286,1635.6,1635.5,6.11433]
[1744691688690,5.286,1635.6,1635.4,6.11455]
[1744691689679,5.286,1635.6,1635.3,6.11505]
[1744691689902,0.7959,1635.5,1635.3,6.11505]
[1744691690615,0.7959,1635.5,1635.2,6.11541]
[1744691690909,0.7959,1635.5,1635.2,12.23068]
[1744691691210,0.7959,1635.5,1635.2,6.11527]
[1744691691411,0.7959,1635.5,1635.2,6.11523]
[1744691691780,0.7959,1635.5,1635.2,12.2305]
[1744691692409,0.7959,1635.5,1635.3,6.11504]
[1744691694214,0.7959,1635.5,1635.2,6.11523]
[1744691694409,6.11485,1635.4,1635.0,6.11604]
[1744691694988,8.1299,1635.5,1634.9,0.7737]
[1744691695222,14.2445,1635.5,1635.1,6.11565]
[1744691695385,8.1299,1635.5,1635.1,6.11565]
[1744691695787,14.24447,1635.5,1635.1,6.11565]
[1744691695985,14.24449,1635.5,1635.1,6.11565]
[1744691698338,8.1299,1635.5,1635.1,6.11565]
[1744691698541,0.8251,1635.3,1635.0,6.11604]
[1744691698839,0.8251,1635.3,1635.0,12.23207]
[1744691699216,0.8251,1635.3,1635.1,6.11577]
[1744691700261,0.8251,1635.3,1635.1,6.11565]
[1744691702146,0.8251,1635.3,1635.0,6.11614]
[1744691702718,6.1156,1635.2,1634.8,6.11678]
[1744691702944,11.4006,1635.2,1634.8,6.11678]
[1744691703144,12.62317,1635.2,1634.8,12.23355]
[1744691703351,12.62317,1635.2,1634.8,6.11677]
[1744691703538,18.73886,1635.2,1634.8,6.11677]
[1744691703739,12.62317,1635.2,1634.8,6.11677]
[1744691704044,18.73897,1635.2,1634.8,6.11677]
[1744691704250,12.62317,1635.2,1634.8,12.23355]
[1744691704447,12.62317,1635.2,1634.8,6.11677]
[1744691704850,12.62317,1635.2,1634.8,12.2336]
[1744691705552,12.62317,1635.2,1634.8,6.11677]
[1744691705756,18.73884,1635.2,1634.8,6.11677]
[1744691706625,6.11584,1635.1,1634.8,6.11677]
[1744691706824,0.8132,1635.0,1634.8,6.11677]
[1744691707157,0.8132,1635.0,1634.7,6.11727]
[1744691707354,6.92945,1635.0,1634.7,6.11727]
[1744691707852,8.233979,1635.0,1634.6,12.23525]
[1744691708061,8.233979,1635.0,1634.6,6.11751]
[1744691708424,8.233979,1635.0,1634.7,6.11718]
[1744691709060,6.92945,1635.0,1634.7,6.11718]
[1744691710362,0.8132,1635.0,1634.7,12.23431]
[1744691710557,0.8132,1635.0,1634.8,6.11693]
[1744691710860,6.0463,1635.4,1635.2,6.11521]
[1744691711024,6.0463,1635.4,1635.3,6.11508]
[1744691713162,5.285,1635.4,1635.3,6.11508]
[1744691713365,0.764,1636.0,1635.3,2.73375538]
[1744691713667,0.764,1635.7,1635.4,6.11457]
[1744691713866,6.8776,1635.7,1635.4,6.11457]
[1744691714269,6.11396,1635.6,1635.2,6.11542]
[1744691714481,6.649696,1635.5,1635.2,6.11542]
[1744691715066,6.649696,1635.5,1635.3,6.11507]
[1744691716769,6.0383,1635.5,1635.3,6.11489]
[1744691716975,5.285,1635.5,1635.3,6.11489]
[1744691717859,5.285,1635.5,1635.2,6.11545]
[1744691718046,5.285,1635.5,1635.2,12.23077]
[1744691719275,5.285,1635.5,1635.3,6.11494]
[1744691720374,5.285,1635.5,1635.4,6.11471]
[1744691721773,5.285,1635.5,1635.4,9.12989466]
[1744691722072,5.285,1635.5,1635.4,6.45728868]
[1744691722787,5.285,1635.5,1635.4,6.11471]
[1744691723674,5.285,1635.5,1635.3,12.22981]
[1744691723872,5.285,1635.5,1635.4,6.11471]
[1744691726480,5.285,1635.5,1635.3,12.22978]
[1744691726681,5.285,1635.5,1635.4,6.11471]
[1744691729485,5.285,1635.5,1635.3,6.11489]
[1744691729657,0.8292,1635.2,1634.7,6.93221]
[1744691729862,0.8292,1635.2,1635.0,6.11619]
[1744691730982,0.8292,1635.2,1634.9,6.11656]
[1744691731155,0.8292,1635.2,1634.9,12.23294]
[1744691731355,0.8292,1635.2,1635.0,6.1162]
[1744691731682,3.8292,1635.2,1635.0,6.1162]
[1744691732188,5.284,1635.1,1635.0,6.1162]
[1744691733584,6.1168,1635.4,1635.3,6.11508]
[1744691735592,6.1168,1635.4,1635.2,6.11545]
[1744691736391,0.8328,1635.4,1635.2,6.1153]
[1744691736602,0.8328,1635.4,1635.1,6.11562]
[1744691737607,8.170852,1635.4,1635.0,6.11616]
[1744691738108,6.11526,1635.3,1634.9,6.11655]
[1744691738468,0.7921,1635.2,1634.9,6.11655]
[1744691738663,5.284,1635.1,1634.9,6.11655]
[1744691738901,5.284,1635.1,1634.8,6.1169]
[1744691739105,0.7921,1635.0,1634.7,6.1173]
[1744691739416,0.7921,1635.0,1634.6,6.11768]
[1744691739417,13.02488,1635.0,1634.6,6.11768]
[1744691739614,6.1166,1634.9,1634.5,6.86952]
[1744691739767,6.1166,1634.9,1634.5,6.11802]
[1744691739969,6.1166,1634.9,1634.5,12.23595]
[1744691740266,6.1166,1634.9,1634.6,6.11761]
[1744691740482,7.419091,1634.9,1634.5,6.11793]
[1744691741519,6.93939,1634.8,1634.4,6.11831]
[1744691741713,6.94314,1634.6,1634.2,6.11905]
[1744691742282,6.11862,1634.4,1634.0,6.11984]
[1744691742484,6.057,1634.3,1634.0,6.11972]
[1744691743302,13.393512,1634.3,1633.9,6.12027]
[1744691743680,13.393512,1634.3,1633.9,12.24036]
[1744691744084,7.274562,1634.3,1634.0,6.11993]
[1744691744279,5.285,1634.3,1634.2,6.1192]
[1744691744884,0.8023,1634.7,1634.4,6.11833]
[1744691745087,5.285,1634.7,1634.6,6.1177]
[1744691751726,5.285,1634.9,1634.6,0.06117193]
[1744691751894,5.285,1634.9,1634.8,6.11695]
[1744691756937,5.27283709,1634.9,1634.8,6.11695]
[1744691758036,5.27283709,1634.9,1634.7,6.11717]
[1744691759535,5.27283709,1634.9,1634.7,6.11713]
[1744691759929,5.27283709,1634.9,1634.8,6.11695]
[1744691760307,5.27283709,1634.9,1634.7,6.11713]
[1744691760711,5.27283709,1634.9,1634.7,12.23431]
[1744691761038,5.27283709,1634.9,1634.8,6.11695]
[1744691762036,0.8262,1634.8,1634.6,6.11763]
[1744691762410,0.8262,1634.8,1634.6,6.11756]
[1744691762610,0.8262,1634.8,1634.6,12.23508]
[1744691763840,0.8262,1634.8,1634.6,6.11752]
[1744691765206,0.8262,1634.8,1634.6,12.23504]
[1744691765837,6.9432,1634.8,1634.5,6.11801]
[1744691766407,0.8262,1634.8,1634.5,12.23591]
[1744691766739,0.8262,1634.8,1634.6,6.11769]
[1744691767507,11.38958709,1634.9,1634.8,6.11695]
[1744691767508,5.27283709,1634.9,1634.8,6.11695]
[1744691768545,47.694,1635.2,1634.9,6.11658]
[1744691768707,5.285,1635.3,1635.2,6.11545]
[1744691769035,5.285,1635.5,1635.3,6.11508]
[1744691770311,2.6,1635.4,1635.3,6.11508]
[1744691770619,5.285,1635.5,1635.3,6.11508]
[1744691773111,5.285,1635.5,1635.4,6.11471]
[1744691774016,5.285,1635.5,1635.3,6.11486]
[1744691775826,5.285,1635.5,1635.4,6.11471]
[1744691777209,5.285,1635.5,1635.3,6.11486]
[1744691777415,5.285,1635.5,1635.2,12.2307]
[1744691777726,5.285,1635.5,1635.3,6.11496]
[1744691779047,5.285,1635.5,1635.3,12.22985]
[1744691779238,5.285,1635.5,1635.4,6.11471]
[1744691780347,5.285,1635.5,1635.4,6.93401]
[1744691781755,5.285,1635.5,1635.4,6.9951512]
[1744691782322,5.283,1635.8,1635.7,6.11359]
[1744691783757,5.283,1635.8,1635.7,6.94639]
[1744691783955,5.283,1636.1,1636.0,6.11246]
[1744691784256,5.283,1636.1,1635.8,6.11307]
[1744691784558,5.283,1636.1,1635.9,6.11282]
[1744691785159,5.283,1636.1,1636.0,6.11246]
[1744691786742,5.283,1636.1,1635.9,6.17394659]
[1744691786743,5.283,1636.1,1635.9,6.11282]
[1744691786935,5.283,1636.1,1635.8,6.11314]
[1744691786936,6.0699,1636.1,1635.8,6.11314]
[1744691787152,6.0699,1636.1,1635.8,12.28726528]
[1744691787353,6.0699,1636.1,1635.9,6.11281]
[1744691787541,6.0699,1636.1,1635.9,6.11268]
[1744691787930,5.283,1636.1,1636.0,6.11246]
[1744691791183,5.283,1636.1,1635.8,6.11317]
[1744691791388,5.283,1636.1,1635.9,6.11271]
[1744691791890,5.283,1636.1,1635.9,12.22539]
[1744691792884,5.283,1636.1,1635.9,6.11268]
[1744691793092,0.7714,1636.0,1635.8,6.1132]
[1744691793459,0.7714,1636.0,1635.8,12.22624]
[1744691793901,0.7714,1636.0,1635.8,6.11304]
[1744691794088,0.7714,1636.0,1635.7,12.22696]
[1744691794704,0.7714,1636.0,1635.7,6.11342]
[1744691795224,6.88392,1636.0,1635.7,6.11342]
[1744691795802,6.11284,1635.9,1635.6,6.11393]
[1744691796100,6.8851,1635.8,1635.4,12.22921]
[1744691796271,5.281,1635.7,1635.4,12.22921]
[1744691797197,5.281,1635.7,1635.6,6.11396]
[1744691797404,5.281,1635.7,1635.5,6.11426]
[1744691799273,5.281,1635.7,1635.4,12.22925]
[1744691799887,5.281,1635.7,1635.4,6.11454]
[1744691800400,5.281,1635.7,1635.4,12.22905]
[1744691802309,0.7628,1635.6,1635.3,6.11496]
[1744691803308,0.7628,1635.6,1635.3,6.11488]
[1744691803616,0.7628,1635.6,1635.4,6.1147]
[1744691804112,0.75085423,1635.6,1635.4,6.1147]
[1744691805783,0.75085423,1635.6,1635.4,12.22925]
[1744691806214,0.75085423,1635.6,1635.4,6.11455]
[1744691813625,0.75085423,1635.6,1635.4,12.22913]
[1744691813820,0.75085423,1635.6,1635.4,6.11455]
[1744691814412,0.75085423,1635.6,1635.4,12.22914]
[1744691815817,0.75085423,1635.6,1635.4,6.11455]
[1744691816203,5.281,1635.5,1635.4,6.11455]
[1744691817915,5.281,1635.5,1635.4,6.89685]
[1744691818110,5.281,1635.5,1635.4,7.23938567]
[1744691818926,0.7824,1636.0,1635.8,6.11304]
[1744691819130,5.282,1635.9,1635.8,6.11304]
[1744691819429,5.282,1635.9,1635.7,6.11345]
[1744691819917,2.2,1635.8,1635.7,6.11345]
[1744691820312,5.282,1635.9,1635.7,6.11345]
[1744691820837,5.282,1635.9,1635.6,6.11374]
[1744691821034,5.282,1635.9,1635.6,12.22755]
[1744691821228,5.282,1635.9,1635.7,6.11352]
[1744691822136,5.282,1635.9,1635.8,6.11321]
[1744691822341,5.282,1635.9,1635.7,6.11341]
[1744691822544,5.282,1635.9,1635.5,3.48480598]
[1744691822545,11.39489,1635.9,1635.5,12.2283]
[1744691822712,0.8224,1635.8,1635.5,12.2283]
[1744691824357,0.8224,1635.8,1635.5,6.11415]
[1744691824558,8.157409,1635.8,1635.5,6.11415]
[1744691825452,2.044129,1635.8,1635.5,12.22835]
[1744691825761,0.8224,1635.8,1635.6,6.11395]
[1744691827510,0.8224,1635.8,1635.6,12.22774]
[1744691827725,5.282,1635.9,1635.7,6.11359]
[1744691827959,5.282,1635.9,1635.8,6.11321]
[1744691829468,5.282,1635.9,1635.7,6.11359]
[1744691829764,0.7853,1635.8,1635.6,6.11393]
[1744691829934,12.18023,1635.9,1635.6,6.11393]
[1744691830558,18.29328,1635.9,1635.5,6.11433]
[1744691830751,18.29336,1635.9,1635.5,6.11433]
[1744691831520,12.18023,1635.9,1635.5,6.11433]
[1744691831814,12.18023,1635.9,1635.5,12.22846]
[1744691832023,20.122585,1635.9,1635.5,6.11413]
[1744691832850,6.11324,1635.8,1635.5,6.11413]
[1744691834355,14.009505,1635.9,1635.5,12.22834]
[1744691836470,6.0673,1635.9,1635.7,6.11345]
[1744691837175,6.0673,1635.9,1635.6,6.11389]
[1744691837636,6.0673,1635.9,1635.6,6.11375]
[1744691838328,12.18017,1635.9,1635.5,6.11427]
[1744691838660,6.0673,1635.9,1635.6,6.11378]
[1744691840172,12.18015,1635.9,1635.6,6.11378]
[1744691840374,14.009417,1635.9,1635.6,6.11378]
[1744691841170,6.11324,1635.8,1635.5,6.11428]
[1744691841355,6.11324,1635.8,1635.4,12.22915]
[1744691842135,6.11324,1635.8,1635.4,6.11453]
[1744691842366,6.89513,1635.7,1635.4,6.11453]
[1744691844980,2.2,1635.6,1635.4,6.11453]
[1744691846383,2.2,1635.6,1635.3,6.11503]
[1744691846552,8.31403,1635.6,1635.3,6.11503]
[1744691846747,5.28,1635.5,1635.3,6.11503]
[1744691848115,5.28,1635.5,1635.3,12.22999]
[1744691848560,5.28,1635.5,1635.3,6.11496]
[1744691849860,5.28,1635.5,1635.3,12.22985]
[1744691850873,5.28,1635.5,1635.3,6.11489]
[1744691851075,5.28,1635.5,1635.2,6.11539]
[1744691851076,6.0734,1635.5,1635.2,6.11539]
[1744691851467,6.0734,1635.5,1635.3,0.00820034]
[1744691856084,14.017913,1635.5,1635.3,0.00820034]
[1744691856775,20.132593,1635.5,1635.3,0.00820034]
[1744691857199,6.11471,1635.4,1635.3,0.00820034]
[1744691859091,14.017913,1635.5,1635.3,0.00820034]
[1744691860016,6.11471,1635.4,1635.3,0.00820034]
[1744691860220,14.017913,1635.5,1635.3,0.00820034]
[1744691860221,20.132403,1635.5,1635.3,0.00820034]
[1744691860422,2.0132403,1635.4,1635.3,0.00820034]
[1744691860926,6.0734,1635.5,1635.3,0.00820034]
[1744691862094,5.28,1635.5,1635.3,6.12312034]
[1744691862299,5.28,1635.5,1635.4,6.94211]
[1744691863518,5.27179966,1635.5,1635.4,6.94211]
[1744691865351,5.281,1635.8,1635.7,6.11341]
[1744691866028,7.381,1635.8,1635.7,6.11341]
[1744691866230,5.281,1635.8,1635.7,6.11341]
[1744691868240,5.281,1635.8,1635.6,6.11395]
[1744691873251,5.281,1635.8,1635.6,12.22774]
[1744691873447,5.281,1635.8,1635.7,6.11359]
[1744691875609,6.0911,1635.8,1635.3,3.50120598]
[1744691876515,12.20443,1635.8,1635.4,12.22908]
[1744691877344,12.20443,1635.8,1635.5,6.11422]
[1744691877543,6.0911,1635.8,1635.5,6.11415]
[1744691877741,12.20443,1635.8,1635.5,6.11415]
[1744691877945,14.036164,1635.8,1635.5,6.11415]
[1744691878148,6.11377,1635.7,1635.3,6.94349]
[1744691878352,6.11398,1635.6,1635.3,6.94349]
[1744691878647,6.11377,1635.7,1635.3,6.94349]
[1744691878830,6.11377,1635.7,1635.3,0.8286]
[1744691878831,2.0149874,1635.7,1635.3,0.8286]
[1744691879207,6.0911,1635.8,1635.5,6.11419]
[1744691879448,6.0911,1635.8,1635.4,6.11471]
[1744691879616,6.0911,1635.8,1635.3,6.94351]
[1744691879617,12.20445,1635.8,1635.3,6.94351]
[1744691879945,2.0,1635.7,1635.4,6.11449]
[1744691880143,8.11365,1635.7,1635.4,6.11449]
[1744691882462,2.0,1635.7,1635.4,12.22901]
[1744691882834,2.0,1635.7,1635.4,6.11449]
[1744691883035,10.145394,1635.7,1635.3,6.11507]
[1744691883248,10.145394,1635.7,1635.3,12.22997]
[1744691883634,0.7607,1635.6,1635.3,12.22997]
[1744691883861,0.7607,1635.6,1635.3,6.1149]
[1744691884164,0.7607,1635.6,1635.3,12.22982]
[1744691884769,6.87468,1635.6,1635.2,6.11543]
[1744691884973,0.7607,1635.6,1635.4,6.11466]
[1744691885791,2.0,1635.7,1635.4,12.22919]
[1744691885995,2.7655,1635.7,1635.5,6.11433]
[1744691886377,8.87913,1635.7,1635.4,6.11453]
[1744691887998,10.90647,1635.7,1635.3,6.11506]
[1744691888306,6.11434,1635.5,1635.2,6.11532]
[1744691888479,5.279,1635.4,1635.2,6.11532]
[1744691888684,5.279,1635.4,1635.2,6.11528]
[1744691888899,5.279,1635.4,1635.1,6.11577]
[1744691888900,0.7539,1635.3,1635.1,6.11577]
[1744691889875,0.7539,1635.3,1635.0,13.03026]
[1744691890790,6.86908,1635.3,1635.0,6.11613]
[1744691891175,0.7539,1635.3,1635.0,6.11613]
[1744691891888,6.86907,1635.3,1634.9,12.23306]
[1744691892283,5.279,1635.4,1634.9,8.8503451]
[1744691892477,5.279,1635.4,1635.2,6.11527]
[1744691892685,5.279,1635.4,1635.2,12.23055]
[1744691893377,5.279,1635.4,1635.2,6.11527]
[1744691894812,0.7586,1635.7,1635.3,0.8128]
[1744691895106,6.0386,1635.7,1635.5,6.11418]
[1744691895274,5.28,1635.7,1635.6,6.11396]
[1744691895474,5.28,1635.7,1635.6,6.94396]
[1744691895894,5.28,1635.7,1635.4,12.22927]
[1744691896810,5.28,1635.7,1635.5,6.11433]
[1744691898010,5.28,1635.7,1635.6,6.11396]
[1744691898210,5.28,1635.7,1635.6,6.90806]
[1744691898567,5.28,1635.7,1635.6,6.11396]
[1744691904661,6.11397,1635.6,1635.3,6.11502]
[1744691904860,14.88125598,1635.7,1635.3,12.2299]
[1744691905656,14.88116598,1635.7,1635.3,6.11488]
[1744691906439,6.11437,1635.5,1635.2,6.11539]
[1744691907159,7.413737,1635.5,1635.2,6.11539]
[1744691908060,0.7841,1635.4,1635.1,6.11583]
[1744691908265,5.278,1635.3,1635.0,6.11609]
[1744691909161,11.39327,1635.3,1634.9,6.11655]
[1744691909543,6.89983,1635.2,1634.8,6.11693]
[1744691910648,6.89983,1635.2,1634.8,12.23365]
[1744691911159,0.7841,1635.2,1635.0,6.11585]
[1744691911327,6.0621,1635.3,1635.1,6.11583]
[1744691911627,6.0621,1635.3,1635.0,6.11585]
[1744691912451,6.0621,1635.3,1635.0,12.23184]
[1744691913241,6.0621,1635.3,1635.0,6.11585]
[1744691914562,6.0621,1635.3,1635.1,6.11582]
[1744691915554,6.0621,1635.3,1635.0,6.11585]
[1744691915758,12.17722,1635.3,1635.0,6.11585]
[1744691915963,14.006419,1635.3,1634.9,6.93224]
[1744691916882,6.11549,1635.2,1634.9,6.11654]
[1744691917252,0.7762,1635.1,1634.8,6.11695]
[1744691917458,0.7762,1635.1,1634.8,12.2339]
[1744691918819,0.7762,1635.1,1634.9,6.11651]
[1744691921392,0.7762,1635.1,1634.9,6.1164]
[1744691923498,0.8056,1635.2,1634.9,12.23279]
[1744691924569,0.8056,1635.2,1634.9,6.11639]
[1744691925802,13.98052493,1635.2,1634.8,6.11689]
[1744691926015,6.11584,1635.1,1634.8,6.11689]
[1744691926512,12.23191,1635.1,1634.7,6.11731]
[1744691926679,0.789,1635.0,1634.7,6.11731]
[1744691926874,5.279,1634.9,1634.7,12.23444]
[1744691927712,5.279,1634.9,1634.3,6.94577]
[1744691927713,6.87507,1634.8,1634.3,6.94577]
[1744691928014,0.758,1634.8,1634.6,6.11757]
[1744691928390,0.758,1634.8,1634.5,12.23614]
[1744691928994,0.758,1634.8,1634.5,12.23597]
[1744691930493,0.758,1634.8,1634.6,6.11764]
[1744691931110,0.758,1634.8,1634.5,12.23585]
[1744691931296,0.758,1634.8,1634.5,6.1179]
[1744691931924,6.87496,1634.8,1634.4,6.11843]
[1744691932095,8.762684,1634.8,1634.4,6.11843]
[1744691932296,8.762684,1634.8,1634.4,12.23669]
[1744691932926,8.762684,1634.8,1634.4,6.11826]
[1744691933423,14.879894,1634.8,1634.4,6.11826]
[1744691933824,6.11734,1634.7,1634.4,6.11826]
[1744691935322,6.11734,1634.7,1634.3,6.11877]
[1744691935525,6.87933,1634.6,1634.2,6.11914]
[1744691935696,11.39711,1634.5,1634.2,6.11914]
[1744691936218,5.279,1634.5,1634.4,6.11845]
[1744691936589,5.279,1634.5,1634.3,12.23741]
[1744691937530,5.279,1634.5,1634.2,6.11915]
[1744691938507,5.279,1634.5,1634.3,6.11879]
[1744691940129,5.279,1634.5,1634.3,12.23745]
[1744691940329,5.279,1634.5,1634.4,6.11845]
[1744691940739,5.279,1634.5,1634.3,6.11866]
[1744691941271,11.39723,1634.5,1634.1,6.1194]
[1744691941478,0.8316,1634.4,1634.1,6.1194]
[1744691941673,0.8316,1634.4,1634.1,6.11937]
[1744691942058,2.054483,1634.4,1634.1,6.11937]
[1744691942458,8.173213,1634.4,1634.0,6.11991]
[1744691942632,8.172943,1634.4,1634.0,6.11979]
[1744691942969,14.291603,1634.4,1634.0,6.11979]
[1744691943386,6.11899,1634.3,1633.9,6.12032]
[1744691943532,6.11977,1634.1,1633.8,0.55]
[1744691943878,6.0977,1634.0,1633.8,0.55]
[1744691944560,12.21769,1634.0,1633.8,0.55]
[1744691944732,6.92762,1633.9,1633.8,0.55]
[1744691944935,10.47762,1633.9,1633.8,0.55]
[1744691945157,13.1999022,1633.9,1633.8,0.55]
[1744691950044,0.7758,1633.2,1633.1,0.05]
[1744691950246,12.17974,1633.2,1633.1,0.05]
[1744691950641,15.72974,1633.2,1633.1,0.05]
[1744691950846,18.1822436,1633.2,1633.1,0.05]
[1744691953376,5.282,1633.2,1633.1,0.05]
[1744691953794,5.282,1633.2,1633.1,6.17332]
[1744691954097,5.282,1633.2,1633.1,7.00132]
[1744691954283,5.282,1633.2,1633.1,0.878]
[1744691955498,5.282,1633.2,1633.1,0.05]
[1744691955705,12.545398,1633.2,1633.1,0.05]
[1744691956798,5.282,1633.2,1633.1,6.17332]
[1744691957490,47.727,1633.6,1633.3,6.12252]
[1744691957799,5.284,1633.5,1633.3,12.24495]
[1744691958191,5.284,1633.5,1633.4,6.12219]
[1744691958363,5.284,1633.5,1633.4,6.93489]
[1744691959398,5.284,1633.5,1633.4,0.8127]
[1744691959730,5.284,1633.5,1633.2,0.8195]
[1744691959731,12.03839524,1633.5,1633.2,0.8195]
[1744691959889,5.91632524,1633.5,1633.2,6.94243]
[1744691960199,5.91632524,1633.5,1633.3,6.12256]
[1744691960502,12.03831524,1633.5,1633.2,0.8195]
[1744691960705,5.91632524,1633.5,1633.2,0.8195]
[1744691961716,5.91632524,1633.5,1633.3,6.12254]
[1744691962039,5.284,1633.5,1633.3,6.12254]
[1744691962574,5.284,1633.5,1633.3,6.12244]
[1744691962824,5.284,1633.5,1633.3,12.2448]
[1744691963878,1.8,1633.4,1633.3,12.2448]
[1744691965324,5.284,1633.5,1633.4,6.12219]
[1744691966389,5.282,1633.8,1633.7,6.89687]
[1744691969327,5.282,1633.8,1633.7,6.12107]
[1744691969690,5.282,1633.8,1633.7,6.93487]
[1744691972322,5.282,1633.8,1633.7,6.99607396]
[1744691972522,5.282,1633.8,1633.7,9.60747598]
[1744691972701,5.282,1634.5,1634.4,6.11845]
[1744691974394,5.282,1634.8,1634.6,6.11756]
[1744691975651,5.282,1634.8,1634.6,6.11747]
[1744691975852,5.282,1634.8,1634.5,6.11785]
[1744691976006,5.95344,1634.8,1634.5,6.11785]
[1744691976345,5.282,1634.8,1634.6,6.11742]
[1744691976551,5.282,1634.8,1634.7,6.11733]
[1744691976909,5.282,1634.8,1634.6,6.89882]
[1744691977123,5.282,1634.8,1634.6,6.11742]
[1744691978155,5.282,1634.8,1634.7,6.11733]
[1744691979752,5.282,1634.8,1634.5,6.11784]
[1744691980456,5.282,1634.8,1634.6,6.11755]
[1744691981175,5.282,1634.8,1634.7,6.11733]
[1744691981520,5.282,1634.8,1634.7,6.90773]
[1744691983952,5.282,1634.8,1634.7,6.11733]
[1744691984140,5.282,1634.8,1634.6,6.11747]
[1744691984337,5.8102,1634.8,1634.6,6.11747]
[1744691985868,5.8102,1634.8,1634.6,12.23496]
[1744691986469,5.8102,1634.8,1634.6,6.11747]
[1744691987465,5.8102,1634.8,1634.6,12.23502]
[1744691987821,5.282,1634.8,1634.7,6.11733]
[1744691988257,5.282,1634.8,1634.7,6.94163]
[1744691988874,6.089,1635.2,1634.7,4.20433341]
[1744691989077,6.089,1635.2,1635.0,6.11619]
[1744691989241,5.8869,1635.2,1635.1,6.11583]
[1744691989943,6.88757,1635.1,1634.7,0.8091]
[1744691990271,6.88757,1635.1,1634.7,6.92615]
[1744691990475,6.88757,1635.1,1634.7,13.04328]
[1744691990975,6.88757,1635.1,1634.7,13.04334]
[1744691991274,0.688757,1635.0,1634.7,13.04334]
[1744691991430,0.688757,1635.0,1634.7,13.04335]
[1744691991633,6.805177,1635.0,1634.6,6.93457]
[1744691991868,12.921687,1635.0,1634.6,6.93457]
[1744691992078,1.2921687,1634.9,1634.6,6.93457]
[1744691992543,1.2921687,1634.9,1634.6,13.05213]
[1744691992726,1.2921687,1634.9,1634.6,6.93446]
[1744691993078,6.11642,1635.0,1634.6,13.05202]
[1744691994076,6.11642,1635.0,1634.6,6.93446]
[1744691994670,12.23287,1635.0,1634.6,6.93446]
[1744691995451,6.11642,1635.0,1634.6,6.93439]
[1744691995944,6.11642,1635.0,1634.7,6.11732]
[1744691996258,0.611642,1634.9,1634.7,6.11732]
[1744691996467,0.8171,1634.8,1634.4,6.89572]
[1744691996646,0.8171,1634.8,1634.5,6.11792]
[1744691998656,6.0941,1634.8,1634.5,6.11792]
[1744691998830,12.2111,1634.8,1634.5,6.11792]
[1744691999179,14.1050372,1634.8,1634.4,6.11832]
[1744691999371,20.2222672,1634.8,1634.4,6.11832]
[1744691999974,14.1050372,1634.8,1634.4,6.11832]
[1744692000471,14.1050372,1634.8,1634.4,6.11825]
[1744692001788,6.11749,1634.7,1634.3,6.11881]
[1744692001948,0.827,1634.6,1634.3,6.11881]
[1744692002346,0.827,1634.6,1634.1,6.11957]
[1744692002347,6.11823,1634.5,1634.1,6.11957]
[1744692002558,0.7933,1634.3,1634.0,6.88153]
[1744692002766,0.7933,1634.3,1634.0,6.11993]
[1744692004140,6.91215,1634.3,1634.0,6.11993]
[1744692005546,6.11934,1634.2,1633.8,6.12065]
[1744692005883,0.8257,1634.0,1633.5,0.7516]
[1744692006096,5.278,1633.9,1633.7,6.12082]
[1744692006383,5.278,1633.9,1633.8,6.1207]
[1744692009247,5.278,1633.9,1633.6,8.79659681]
[1744692009447,6.0307,1633.9,1633.5,3.816]
[1744692009682,5.278,1633.9,1633.8,6.1207]
[1744692010582,5.278,1633.9,1633.7,6.12086]
[1744692010959,5.278,1633.9,1633.7,12.24176]
[1744692011285,5.278,1633.9,1633.7,6.12086]
[1744692013781,5.278,1633.9,1633.3,0.0678296]
[1744692013782,6.93319,1633.8,1633.3,0.0678296]
[1744692013950,0.8124,1633.8,1633.5,6.12179]
[1744692014280,0.8124,1633.8,1633.5,6.12166]
[1744692014654,6.9331,1633.8,1633.5,6.12166]
[1744692014854,0.8124,1633.8,1633.5,12.2433]
[1744692015385,0.8124,1633.8,1633.5,6.92188]
[1744692015952,0.8124,1633.8,1633.5,13.0435]
[1744692016911,5.278,1633.9,1633.5,0.8001]